lending/lending_fUSD_20251111
["ID","MTS","AMOUNT","RATE_DAILY","PERIOD"]
[393582230,1762819346655,857.16,0.00013699,2]
[393582241,1762819627541,246.2,0.00025299,120]
[393582242,1762819799591,150.0,0.00030136,120]
[393582243,1762819805387,199.0,0.00028766,120]
[393582253,1762819832323,-246.2,0.00016866,2]
[393582254,1762819832332,-3476.43,0.00016992,2]
[393582256,1762819832342,-450.0,0.00017541,2]
[393582257,1762819832351,-300.0,0.00017541,2]
[393582258,1762819832361,-530.0,0.00017568,2]
[393582259,1762819832370,-1200.0,0.00017568,2]
[393582260,1762819832379,-906.0,0.00017569,2]
[393582261,1762819832389,-1189.0,0.00017569,2]
[393582262,1762819832399,-6479.0,0.00017569,2]
[393582263,1762819832408,-969.12306026,0.00017569,2]
[393582265,1762819832423,-5692.87693974,0.00017569,2]
[393582266,1762819832433,-2142.0,0.00017569,2]
[393582267,1762819832442,-240.72204966,0.000176,2]
[393582268,1762819832454,-759.27795034,0.000176,2]
[393582269,1762819832464,-506.44706124,0.0001767,2]
[393582270,1762819832475,-43.55293876,0.0001767,2]
[393582271,1762819832484,-397.87858082,0.00017671,2]
[393582272,1762819832494,-161.59471818,0.00017671,2]
[393582273,1762819832503,-500.0,0.00017671,2]
[393582274,1762819832512,-500.0,0.00017671,2]
[393582275,1762819832522,-500.0,0.00017671,2]
[393582276,1762819832531,-500.0,0.00017671,2]
[393582277,1762819832541,-474.57130954,0.00017671,2]
[393582278,1762819832551,-500.0,0.00017671,2]
[393582279,1762819832560,-500.0,0.00017671,2]
[393582280,1762819832570,-500.0,0.00017671,2]
[393582281,1762819832579,-500.0,0.00017671,2]
[393582282,1762819832588,-500.0,0.00017671,2]
[393582283,1762819832597,-500.0,0.00017671,2]
[393582284,1762819832606,-500.0,0.00017671,2]
[393582285,1762819832616,-500.0,0.00017671,2]
[393582286,1762819832626,-500.0,0.00017671,2]
[393582287,1762819832636,-500.0,0.00017671,2]
[393582288,1762819832645,-500.0,0.00017671,2]
[393582289,1762819832655,-527.18660999,0.00017671,2]
[393582290,1762819832666,-500.0,0.00017671,2]
[393582291,1762819832676,-500.0,0.00017671,2]
[393582292,1762819832691,-500.0,0.00017671,2]
[393582293,1762819832700,-500.0,0.00017671,2]
[393582294,1762819832710,-500.0,0.00017671,2]
[393582296,1762819832719,-311.47,0.00017672,2]
[393582297,1762819832730,-500.0,0.00017673,2]
[393582298,1762819832739,-4061.9302,0.00017673,2]
[393582299,1762819832748,-1046.7168,0.00017673,2]
[393582300,1762819832758,-8835.085,0.00017673,2]
[393582301,1762819832769,-1000.0,0.00017673,2]
[393582302,1762819832778,-24532.802164,0.00017676,2]
[393582303,1762819832787,-3394.6591528,0.00017676,2]
[393582304,1762819832798,-158.651652,0.00017676,2]
[393582305,1762819832807,-33610.438914,0.00017676,2]
[393582306,1762819832816,-300.0,0.00017678,2]
[393582307,1762819832825,-220.04877857,0.00017686,2]
[393582308,1762819832834,-306.73709462,0.00017686,2]
[393582309,1762819832843,-15143.94329069,0.00017686,2]
[393582310,1762819832851,-157.40956415,0.00017686,2]
[393582311,1762819832861,-2666.19972788,0.00017686,2]
[393582312,1762819832870,-221.96065187,0.00017741,2]
[393582313,1762819832880,-4039.77,0.00017752,2]
[393582314,1762819832890,-500.0,0.00017753,2]
[393582315,1762819832899,-9999.99,0.00017753,2]
[393582316,1762819832908,-1017.18,0.00017753,2]
[393582317,1762819832918,-9999.99,0.00017753,2]
[393582318,1762819832927,-150.99,0.00017753,2]
[393582319,1762819832936,-171.69,0.00017756,2]
[393582320,1762819832946,-277.35679052,0.00017761,2]
[393582321,1762819832955,-200.0,0.00017762,2]
[393582322,1762819832964,-256.21770197,0.00017762,2]
[393582323,1762819832973,-574.12855637,0.00017762,2]
[393582324,1762819832983,-151.0,0.00017762,2]
[393582325,1762819832992,-151.0,0.00017762,2]
[393582326,1762819833001,-151.0,0.00017762,2]
[393582327,1762819833011,-151.0,0.00017762,2]
[393582328,1762819833020,-151.0,0.00017762,2]
[393582329,1762819833029,-151.0,0.00017762,2]
[393582330,1762819833039,-151.0,0.00017762,2]
[393582331,1762819833048,-322.6107,0.00017762,2]
[393582332,1762819833058,-151.0,0.00017762,2]
[393582333,1762819833067,-151.0,0.00017762,2]
[393582334,1762819833077,-151.0,0.00017762,2]
[393582335,1762819833086,-151.0,0.00017762,2]
[393582336,1762819833096,-250.0,0.00017762,2]
[393582337,1762819833105,-151.0,0.00017762,2]
[393582338,1762819833114,-151.0,0.00017762,2]
[393582339,1762819833123,-250.0,0.00017762,2]
[393582340,1762819833133,-500.0,0.00017762,2]
[393582341,1762819833142,-151.0,0.00017762,2]
[393582342,1762819833151,-151.0,0.00017762,2]
[393582343,1762819833160,-250.0,0.00017762,2]
[393582344,1762819833169,-500.0,0.00017762,2]
[393582345,1762819833179,-151.0,0.00017762,2]
[393582346,1762819833188,-250.0,0.00017762,2]
[393582347,1762819833197,-250.0,0.00017762,2]
[393582348,1762819833207,-500.0,0.00017762,2]
[393582349,1762819833216,-151.0,0.00017762,2]
[393582350,1762819833226,-250.0,0.00017762,2]
[393582351,1762819833235,-250.0,0.00017762,2]
[393582352,1762819833244,-250.0,0.00017762,2]
[393582353,1762819833254,-203.83164603,0.00017762,2]
[393582354,1762819833264,-250.0,0.00017762,2]
[393582355,1762819833274,-250.0,0.00017762,2]
[393582356,1762819833284,-151.0,0.00017762,2]
[393582357,1762819833295,-151.0,0.00017762,2]
[393582358,1762819833304,-390.24699802,0.00017762,2]
[393582359,1762819833314,-250.0,0.00017762,2]
[393582360,1762819833325,-250.0,0.00017762,2]
[393582361,1762819833335,-151.0,0.00017762,2]
[393582362,1762819833345,-151.0,0.00017762,2]
[393582363,1762819833355,-250.0,0.00017762,2]
[393582364,1762819833364,-151.0,0.00017762,2]
[393582365,1762819833374,-151.0,0.00017762,2]
[393582366,1762819833498,-293.73514899,0.00017762,2]
[393582367,1762819833508,-250.0,0.00017762,2]
[393582368,1762819833517,-151.0,0.00017762,2]
[393582369,1762819833526,-151.0,0.00017762,2]
[393582370,1762819833536,-151.0,0.00017762,2]
[393582371,1762819833546,-250.0,0.00017762,2]
[393582372,1762819833556,-151.0,0.00017762,2]
[393582373,1762819833566,-250.0,0.00017762,2]
[393582374,1762819833575,-151.0,0.00017762,2]
[393582375,1762819833584,-267.17075637,0.00017762,2]
[393582376,1762819833594,-151.0,0.00017762,2]
[393582377,1762819833603,-151.0,0.00017762,2]
[393582378,1762819833613,-151.0,0.00017762,2]
[393582379,1762819833622,-151.0,0.0001777,2]
[393582380,1762819833632,-151.0,0.0001777,2]
[393582381,1762819833641,-304.74487884,0.00017772,2]
[393582382,1762819833650,-151.88767346,0.00017772,2]
[393582383,1762819833659,-500.0,0.00017772,2]
[393582384,1762819833668,-626.53764744,0.00017772,2]
[393582385,1762819833679,-500.0,0.00017772,2]
[393582386,1762819833690,-500.0,0.00017772,2]
[393582387,1762819833699,-500.0,0.00017772,2]
[393582388,1762819833708,-505.64838895,0.00017772,2]
[393582389,1762819833718,-377.94170616,0.00017772,2]
[393582390,1762819833728,-500.0,0.00017772,2]
[393582391,1762819833738,-500.0,0.00017773,2]
[393582392,1762819833747,-500.0,0.00017773,2]
[393582393,1762819833756,-502.39942565,0.00017773,2]
[393582394,1762819833768,-501.29728882,0.00017773,2]
[393582395,1762819833777,-500.0,0.00017773,2]
[393582396,1762819833787,-500.0,0.00017773,2]
[393582397,1762819833797,-500.0,0.00017773,2]
[393582398,1762819833806,-500.0,0.00017773,2]
[393582399,1762819833816,-500.0,0.00017773,2]
[393582400,1762819833825,-500.0,0.00017773,2]
[393582401,1762819833835,-500.0,0.00017773,2]
[393582402,1762819833844,-503.70744031,0.00017773,2]
[393582403,1762819833854,-500.0,0.00017773,2]
[393582404,1762819833863,-648.54829643,0.00017773,2]
[393582405,1762819833876,-503.9186654,0.00017773,2]
[393582406,1762819833886,-420000.0,0.00017773,2]
[393582407,1762819833896,-1000.0,0.00017786,2]
[393582408,1762819833905,-1000.0,0.000178,2]
[393582409,1762819833914,-225.0,0.00017827,2]
[393582410,1762819833923,-222.0,0.00017856,2]
[393582411,1762819833933,-500.0,0.00017885,2]
[393582412,1762819833942,-500.0,0.00017885,2]
[393582413,1762819833952,-500.0,0.00017885,2]
[393582414,1762819833961,-500.0,0.00017885,2]
[393582415,1762819833970,-3008.278,0.00017885,2]
[393582416,1762819833979,-513.70467372,0.000179,2]
[393582417,1762819833988,-1000.0,0.000179,2]
[393582418,1762819833997,-457.3962744,0.000179,2]
[393582419,1762819834007,-500.0,0.000179,2]
[393582420,1762819834017,-500.0,0.000179,2]
[393582421,1762819834026,-500.0,0.000179,2]
[393582422,1762819834036,-500.0,0.000179,2]
[393582423,1762819834046,-500.0,0.000179,2]
[393582424,1762819834055,-311.47,0.00017946,2]
[393582425,1762819834064,-378.0,0.00017973,2]
[393582426,1762819834074,-500.0,0.00017973,2]
[393582427,1762819834083,-500.344539,0.00017973,2]
[393582428,1762819834092,-363.10933845,0.00017973,2]
[393582429,1762819834102,-500.0,0.00017973,2]
[393582430,1762819834111,-500.0,0.00017973,2]
[393582431,1762819834120,-500.0,0.00017973,2]
[393582432,1762819834130,-504.87705627,0.00017973,2]
[393582433,1762819834139,-500.0,0.00017973,2]
[393582434,1762819834149,-500.0,0.00017973,2]
[393582435,1762819834158,-500.0,0.00017973,2]
[393582436,1762819834177,-607.69627016,0.00017973,2]
[393582437,1762819834190,-231.12441703,0.00017989,2]
[393582438,1762819834200,-150.0,0.00017989,2]
[393582439,1762819834210,-150.0,0.00017989,2]
[393582440,1762819834220,-150.0,0.00017989,2]
[393582441,1762819834229,-151.0800005,0.00017989,2]
[393582442,1762819834239,-150.0,0.00017989,2]
[393582443,1762819834249,-150.0,0.00017989,2]
[393582444,1762819834258,-211.60455807,0.00017989,2]
[393582445,1762819834268,-150.13185417,0.00017989,2]
[393582446,1762819834278,-500.0,0.00017989,2]
[393582447,1762819834288,-500.0,0.00017989,2]
[393582448,1762819834299,-500.0,0.00017989,2]
[393582449,1762819834309,-150.0,0.00017989,2]
[393582450,1762819834319,-150.0,0.00017989,2]
[393582451,1762819834330,-150.0,0.00017989,2]
[393582452,1762819834339,-150.0,0.00017989,2]
[393582453,1762819834349,-150.0,0.00017989,2]
[393582454,1762819834358,-150.90925456,0.00017989,2]
[393582455,1762819834368,-150.0,0.00017989,2]
[393582456,1762819834378,-150.0,0.00017989,2]
[393582457,1762819834389,-204.24525966,0.00017989,2]
[393582458,1762819834399,-150.0,0.00017989,2]
[393582459,1762819834409,-152.49763088,0.00017989,2]
[393582460,1762819834419,-500.0,0.00017989,2]
[393582461,1762819834429,-500.0,0.00017989,2]
[393582462,1762819834439,-221.70766361,0.00017989,2]
[393582463,1762819834450,-150.0,0.00017989,2]
[393582464,1762819834460,-500.0,0.00017989,2]
[393582465,1762819834469,-150.0,0.00017989,2]
[393582466,1762819834479,-500.0,0.00017989,2]
[393582467,1762819834489,-150.0,0.00017989,2]
[393582468,1762819834506,-500.0,0.00017989,2]
[393582469,1762819834516,-500.0,0.00017989,2]
[393582470,1762819834526,-150.0,0.00017989,2]
[393582471,1762819834536,-150.0,0.00017989,2]
[393582472,1762819834546,-150.0,0.00017989,2]
[393582473,1762819834557,-500.0,0.00017989,2]
[393582474,1762819834567,-150.0,0.00017989,2]
[393582475,1762819834578,-150.0,0.00017989,2]
[393582476,1762819834587,-150.0,0.00017989,2]
[393582477,1762819834597,-150.0,0.00017989,2]
[393582478,1762819834606,-150.0,0.00017989,2]
[393582479,1762819834616,-500.0,0.00017989,2]
[393582480,1762819834625,-500.0,0.00017989,2]
[393582481,1762819834635,-381.38938074,0.0001799,2]
[393582482,1762819834644,-381.38938074,0.0001799,2]
[393582483,1762819834654,-154.77872973,0.00017995,2]
[393582484,1762819834663,-500.0,0.00017997,2]
[393582485,1762819834673,-500.0,0.00017997,2]
[393582486,1762819834688,-2121.0,0.00017998,2]
[393582487,1762819834697,-326975.97486958,0.00017998,2]
[393582488,1762819834712,-47137.43180259,0.00017998,2]
[393582489,1762819834724,-79128.99831963,0.00017998,2]
[393582490,1762819834734,-3872.3409097,0.00017998,2]
[393582491,1762819834744,-500.0,0.00017999,2]
[393582492,1762819834753,-500.0,0.00017999,2]
[393582493,1762819834764,-607.03225849,0.00017999,2]
[393582494,1762819834774,-500.0,0.00017999,2]
[393582495,1762819834784,-500.0,0.00017999,2]
[393582496,1762819834794,-500.0,0.00017999,2]
[393582497,1762819834803,-500.0,0.00017999,2]
[393582498,1762819834813,-500.0,0.00017999,2]
[393582499,1762819834822,-500.0,0.00017999,2]
[393582500,1762819834832,-628.14,0.00017999,2]
[393582501,1762819834842,-500.0,0.00017999,2]
[393582502,1762819834851,-500.0,0.00017999,2]
[393582503,1762819834860,-500.0,0.00017999,2]
[393582504,1762819834870,-500.0,0.00017999,2]
[393582505,1762819834879,-500.0,0.00017999,2]
[393582506,1762819834888,-500.0,0.00017999,2]
[393582507,1762819834898,-500.0,0.00017999,2]
[393582508,1762819834908,-179.54679155,0.00017999,2]
[393582509,1762819834918,-500.0,0.00017999,2]
[393582510,1762819834928,-500.0,0.00017999,2]
[393582511,1762819834938,-500.0,0.00017999,2]
[393582512,1762819834948,-500.0,0.00017999,2]
[393582513,1762819834957,-500.0,0.00017999,2]
[393582514,1762819834968,-500.0,0.00017999,2]
[393582515,1762819834977,-500.0,0.00017999,2]
[393582516,1762819835093,-500.0,0.00017999,2]
[393582517,1762819835112,-500.0,0.00017999,2]
[393582518,1762819835122,-500.0,0.00017999,2]
[393582519,1762819835131,-500.0,0.00017999,2]
[393582520,1762819835141,-300.0,0.00017999,2]
[393582521,1762819835151,-60929.7220263,0.00018,2]
[393582522,1762819835162,-203773.93675651,0.00018,2]
[393582523,1762819835174,-950.06454241,0.00018,2]
[393582524,1762819835186,-2523.4231705,0.00018,2]
[393582525,1762819835201,-170585.61911969,0.00018,2]
[393582532,1762819838480,-560.0,0.00017569,2]
[393582533,1762819838490,-78.55537377,0.00017885,2]
[393582534,1762819838537,-86.48121016,0.00017885,2]
[393582535,1762819838548,-1233.16378934,0.00018,2]
[393582536,1762819838561,-400.0,0.00018,2]
[393582537,1762819838573,-1632.62091732,0.00018,2]
[393582538,1762819838608,-13046.24737886,0.00018,2]
[393582539,1762819838789,-500.0,0.00018,2]
[393582540,1762819838802,-1408.85446507,0.00018,2]
[393582541,1762819838814,-93954.77180564,0.00018,2]
[393582542,1762819838826,-2307.80385771,0.00018,2]
[393582543,1762819838842,-6000.02043126,0.00018,2]
[393582544,1762819838853,-574.0,0.00018,2]
[393582545,1762819840360,-736413.41504956,0.00018,2]
[393582546,1762819840370,-1289553.23557778,0.00018,2]
[393582547,1762819840753,-68298.50422982,0.00018,2]
[393582548,1762819840764,-151.0,0.00018,2]
[393582549,1762819840773,-151.0,0.00018,2]
[393582550,1762819840783,-151.0,0.00018,2]
[393582551,1762819840792,-151.0,0.00018,2]
[393582552,1762819840802,-151.0,0.00018,2]
[393582553,1762819840811,-151.0,0.00018,2]
[393582554,1762819840821,-151.0,0.00018,2]
[393582555,1762819840830,-151.0,0.00018,2]
[393582556,1762819840840,-151.0,0.00018,2]
[393582557,1762819840850,-218.710749,0.00018,2]
[393582558,1762819840860,-151.0,0.00018,2]
[393582559,1762819840869,-151.0,0.00018,2]
[393582560,1762819840878,-151.0,0.00018,2]
[393582561,1762819840888,-151.0,0.00018,2]
[393582562,1762819840897,-3098.0,0.00018,2]
[393582563,1762819840907,-151.0,0.00018,2]
[393582564,1762819840916,-151.0,0.00018,2]
[393582565,1762819840925,-450.207254,0.00018,2]
[393582566,1762819840935,-450.207254,0.00018,2]
[393582567,1762819840945,-151.0,0.00018,2]
[393582568,1762819840954,-296.47806518,0.00018021,2]
[393582569,1762819840964,-1518.0,0.00018034,2]
[393582570,1762819840973,-1000.0,0.00018082,2]
[393582571,1762819840983,-175.98,0.00018118,2]
[393582572,1762819840992,-276.74521055,0.00018126,2]
[393582574,1762819841002,-150.0,0.00018126,2]
[393582576,1762819841012,-150.0,0.00018126,2]
[393582578,1762819841021,-150.0,0.00018126,2]
[393582580,1762819841030,-636.55619015,0.00018126,2]
[393582581,1762819841041,-150.0,0.00018126,2]
[393582582,1762819841051,-150.0,0.00018126,2]
[393582583,1762819841061,-150.0,0.00018126,2]
[393582584,1762819841070,-150.0,0.00018126,2]
[393582585,1762819841079,-500.0,0.00018126,2]
[393582586,1762819841088,-500.0,0.00018126,2]
[393582587,1762819841097,-150.0,0.00018126,2]
[393582588,1762819841107,-500.0,0.00018126,2]
[393582589,1762819841116,-150.0,0.00018126,2]
[393582590,1762819841126,-500.0,0.00018126,2]
[393582591,1762819841136,-500.0,0.00018126,2]
[393582592,1762819841145,-500.0,0.00018126,2]
[393582593,1762819841155,-150.0,0.00018126,2]
[393582594,1762819841164,-290.50271738,0.00018126,2]
[393582595,1762819841175,-150.0,0.00018126,2]
[393582596,1762819841185,-150.0,0.00018126,2]
[393582597,1762819841194,-500.0,0.00018126,2]
[393582598,1762819841204,-500.0,0.00018126,2]
[393582599,1762819841213,-401.0,0.00018132,2]
[393582600,1762819841223,-401.0,0.00018155,2]
[393582601,1762819841233,-225.0,0.00018176,2]
[393582602,1762819841242,-311.47,0.0001822,2]
[393582603,1762819841251,-300.0,0.00018231,2]
[393582604,1762819841261,-300.0,0.00018233,2]
[393582605,1762819841275,-300.0,0.00018234,2]
[393582606,1762819841285,-300.0,0.0001824,2]
[393582607,1762819841296,-300.0,0.00018243,2]
[393582608,1762819841306,-300.0,0.00018246,2]
[393582609,1762819841317,-300.0,0.00018255,2]
[393582610,1762819841328,-300.0,0.00018258,2]
[393582611,1762819841337,-300.0,0.0001826,2]
[393582612,1762819841347,-208.08234255,0.00018263,2]
[393582613,1762819841357,-150.0,0.00018263,2]
[393582614,1762819841366,-150.0,0.00018263,2]
[393582615,1762819841376,-200.0,0.00018263,2]
[393582616,1762819841386,-150.0,0.00018263,2]
[393582617,1762819841395,-150.0,0.00018263,2]
[393582618,1762819841405,-500.0,0.00018263,2]
[393582619,1762819841414,-219.31106484,0.00018263,2]
[393582620,1762819841423,-150.0,0.00018263,2]
[393582621,1762819841433,-500.0,0.00018263,2]
[393582622,1762819841442,-152.50493855,0.00018263,2]
[393582623,1762819841454,-500.0,0.00018263,2]
[393582624,1762819841463,-500.0,0.00018263,2]
[393582625,1762819841587,-500.0,0.00018263,2]
[393582626,1762819841597,-150.0,0.00018263,2]
[393582627,1762819841606,-150.0,0.00018263,2]
[393582628,1762819841617,-500.0,0.00018263,2]
[393582629,1762819841627,-500.0,0.00018263,2]
[393582630,1762819841636,-300.0,0.00018269,2]
[393582631,1762819841645,-300.0,0.00018269,2]
[393582632,1762819841654,-300.0,0.00018271,2]
[393582633,1762819841664,-1000.0,0.00018274,2]
[393582634,1762819841673,-300.0,0.00018274,2]
[393582635,1762819841684,-300.0,0.00018276,2]
[393582636,1762819841695,-300.0,0.00018276,2]
[393582637,1762819841704,-300.0,0.00018279,2]
[393582638,1762819841713,-300.0,0.00018279,2]
[393582639,1762819841723,-300.0,0.00018281,2]
[393582640,1762819841733,-300.0,0.00018283,2]
[393582641,1762819841743,-300.0,0.00018288,2]
[393582642,1762819841752,-300.0,0.00018289,2]
[393582643,1762819841764,-300.0,0.00018293,2]
[393582644,1762819841774,-300.0,0.00018295,2]
[393582645,1762819841784,-300.0,0.00018296,2]
[393582646,1762819841793,-300.0,0.00018297,2]
[393582647,1762819841805,-300.0,0.00018298,2]
[393582648,1762819841815,-595.37131296,0.0001831,2]
[393582649,1762819841824,-300.0,0.00018311,2]
[393582650,1762819841833,-300.0,0.00018315,2]
[393582651,1762819841843,-300.0,0.00018317,2]
[393582652,1762819841852,-300.0,0.00018318,2]
[393582653,1762819841861,-300.0,0.00018319,2]
[393582654,1762819841871,-300.0,0.0001832,2]
[393582655,1762819841880,-1000.0,0.00018321,2]
[393582656,1762819841889,-1000.0,0.00018321,2]
[393582657,1762819841899,-300.0,0.00018321,2]
[393582658,1762819841909,-300.0,0.00018322,2]
[393582659,1762819841919,-300.0,0.00018322,2]
[393582660,1762819841929,-300.0,0.00018324,2]
[393582661,1762819841938,-300.0,0.00018325,2]
[393582662,1762819841947,-225.0,0.00018326,2]
[393582663,1762819841956,-300.0,0.00018327,2]
[393582664,1762819841965,-300.0,0.00018337,2]
[393582665,1762819841975,-300.0,0.00018341,2]
[393582666,1762819841985,-300.0,0.00018343,2]
[393582667,1762819841994,-300.0,0.00018347,2]
[393582668,1762819842004,-300.0,0.00018355,2]
[393582669,1762819842014,-300.0,0.00018356,2]
[393582670,1762819842024,-300.0,0.00018357,2]
[393582671,1762819842033,-300.0,0.00018368,2]
[393582672,1762819842042,-1518.0,0.0001837,2]
[393582673,1762819842053,-166.66,0.0001838,2]
[393582674,1762819842063,-300.0,0.00018382,2]
[393582675,1762819842072,-154.14,0.00018385,2]
[393582676,1762819842081,-794.67755743,0.00018385,2]
[393582677,1762819842092,-300.0,0.00018386,2]
[393582678,1762819842102,-300.0,0.00018387,2]
[393582679,1762819842111,-300.0,0.00018389,2]
[393582680,1762819842121,-300.0,0.00018396,2]
[393582681,1762819842130,-300.0,0.00018398,2]
[393582682,1762819842139,-300.0,0.00018398,2]
[393582683,1762819842149,-196.23161218,0.000184,2]
[393582684,1762819842159,-150.0,0.000184,2]
[393582685,1762819842169,-200.0,0.000184,2]
[393582686,1762819842178,-150.0,0.000184,2]
[393582687,1762819842188,-500.0,0.000184,2]
[393582688,1762819842198,-171.49314351,0.000184,2]
[393582689,1762819842216,-637.68179364,0.000184,2]
[393582690,1762819842234,-500.0,0.000184,2]
[393582691,1762819842253,-449.0215357,0.000184,2]
[393582692,1762819842274,-500.0,0.000184,2]
[393582693,1762819842290,-150.0,0.000184,2]
[393582694,1762819842309,-283.44084848,0.000184,2]
[393582695,1762819842328,-500.0,0.000184,2]
[393582696,1762819842345,-500.0,0.000184,2]
[393582697,1762819842366,-300.0,0.00018406,2]
[393582698,1762819842384,-300.0,0.00018409,2]
[393582699,1762819842403,-300.0,0.00018419,2]
[393582700,1762819842420,-300.0,0.00018419,2]
[393582701,1762819842434,-300.0,0.0001842,2]
[393582702,1762819842452,-300.0,0.00018424,2]
[393582704,1762819842465,-300.0,0.00018425,2]
[393582705,1762819842482,-300.0,0.00018436,2]
[393582706,1762819842494,-300.0,0.00018436,2]
[393582707,1762819842509,-300.0,0.00018438,2]
[393582708,1762819842527,-300.0,0.00018446,2]
[393582709,1762819842542,-300.0,0.00018452,2]
[393582710,1762819842558,-300.0,0.00018452,2]
[393582711,1762819842573,-300.0,0.00018458,2]
[393582712,1762819842588,-300.0,0.00018462,2]
[393582713,1762819842603,-300.0,0.00018469,2]
[393582714,1762819842619,-300.0,0.0001847,2]
[393582715,1762819842634,-300.0,0.00018472,2]
[393582716,1762819842649,-300.0,0.00018473,2]
[393582717,1762819842664,-300.0,0.00018474,2]
[393582718,1762819842679,-2666.19972782,0.00018476,2]
[393582719,1762819842696,-15143.94329065,0.00018481,2]
[393582720,1762819842716,-300.0,0.00018482,2]
[393582721,1762819842732,-205.25245686,0.00018486,2]
[393582722,1762819842748,-300.0,0.0001849,2]
[393582723,1762819842763,-300.0,0.00018491,2]
[393582724,1762819842779,-300.0,0.00018494,2]
[393582725,1762819842794,-166.67,0.00018499,2]
[393582726,1762819842811,-300.0,0.00018499,2]
[393582727,1762819842826,-300.0,0.00018501,2]
[393582728,1762819842840,-567.21962,0.00018521,2]
[393582729,1762819842855,-231.42602229,0.00018521,2]
[393582730,1762819842869,-500.0,0.00018521,2]
[393582731,1762819842884,-205.74245272,0.00018537,2]
[393582732,1762819842898,-210.21129166,0.00018537,2]
[393582733,1762819842912,-500.0,0.00018537,2]
[393582734,1762819842926,-500.0,0.00018537,2]
[393582735,1762819842940,-500.0,0.00018537,2]
[393582736,1762819842955,-150.0,0.00018537,2]
[393582737,1762819842970,-500.0,0.00018537,2]
[393582738,1762819842984,-500.0,0.00018537,2]
[393582739,1762819842998,-300.0,0.00018553,2]
[393582740,1762819843013,-250.0,0.00018553,2]
[393582741,1762819843026,-1518.0,0.00018621,2]
[393582742,1762819843042,-1518.0,0.00018641,2]
[393582743,1762819843057,-228.93489949,0.00018674,2]
[393582744,1762819843072,-500.0,0.00018674,2]
[393582745,1762819843086,-500.0,0.00018674,2]
[393582746,1762819843101,-500.0,0.00018674,2]
[393582747,1762819843116,-1518.0,0.00018707,2]
[393582748,1762819843131,-1000.0,0.0001876,2]
[393582749,1762819843147,-1518.0,0.00018789,2]
[393582750,1762819843161,-225.0,0.00018804,2]
[393582751,1762819843172,-500.0,0.00018811,2]
[393582752,1762819843182,-500.0,0.00018811,2]
[393582754,1762819843353,-500.0,0.00018811,2]
[393582755,1762819843377,-1518.0,0.00018818,2]
[393582756,1762819843387,-617.40005154,0.00018858,2]
[393582757,1762819843396,-1518.0,0.00018868,2]
[393582758,1762819843406,-600.0,0.00018868,2]
[393582759,1762819843415,-337.38098424,0.00018868,2]
[393582760,1762819843424,-1518.0,0.00018869,2]
[393582761,1762819843434,-1518.0,0.00018899,2]
[393582762,1762819843443,-1518.0,0.00018904,2]
[393582763,1762819843452,-500.0,0.00018948,2]